Cogmind - Beta 11 @@@ ROGUE MODE // 2022.04.09 @ 18:32:46 Player: Cookie Result: Destroyed by D-53 Grenadier with Mini Grenade Launcher Performance ------------- Evolutions (0) 0 Regions Visited (2) 400 Robots Destroyed (12) 60 Value Destroyed (252) 252 Prototype IDs (0) 0 Alien Tech Used (0) 0 Bonus (-114) -114 TOTAL SCORE: 598 Bonus ------- Follower Combat Kills 7 Friendly Fire -121 Cogmind --------- Core Integrity 0/250 Matter 250/300 Energy 77/100 System Corruption 0% Temperature Cool (0) Movement Core (50) Location -10/Mines Parts ------- > --- POWER (1) -------- (None) > --- PROPULSION (2) --- (None) > --- UTILITY (2) ------ (None) > --- WEAPON (2) ------- (None) > --- INVENTORY (5) ---- Aluminum Leg Aluminum Leg Transport Network Coupler Assault Rifle Assault Rifle Peak State ------------ > --- POWER ------------ Ion Engine > --- PROPULSION ------- Aluminum Leg Aluminum Leg > --- UTILITY ---------- Heat Sink Medium Storage Unit > --- WEAPON ----------- Medium Laser Rocket Launcher > --- INVENTORY -------- Light Ion Engine Aluminum Leg Aluminum Leg Transport Network Coupler Assault Rifle Assault Rifle Grenade Launcher [Rating: 8] Favorites ----------- Power Ion Engine Engine Ion Engine Propulsion Aluminum Leg Leg Aluminum Leg Wheel Wheel Utility Heat Sink Device Heat Sink Storage Medium Storage Unit Weapon Medium Laser Energy Gun Medium Laser Ballistic Gun Assault Rifle Launcher Rocket Launcher Build | -11 -10 -10 ------- Run | Scr Mat Min Slots Evolved . | . . . Power . | . . . Propulsion . | . . . Utility . | . . . Weapon . | . . . Parts Attached 15 | 6 6 3 Power 2 | 1 1 . Engine 2 | 1 1 . Core . | . . . Reactor . | . . . Propulsion 4 | 2 2 . Treads . | . . . Leg 2 | . 2 . Wheel 2 | 2 . . Hover . | . . . Flight . | . . . Utility 4 | 1 3 . Device 2 | . 2 . Storage 2 | 1 1 . Processor . | . . . Hackware . | . . . Protection . | . . . Artifact . | . . . Weapon 5 | 2 . 3 Energy Gun 1 | 1 . . Energy Cannon . | . . . Ballistic Gun 1 | 1 . . Ballistic Cannon . | . . . Launcher 3 | . . 3 Special Weapon . | . . . Impact Weapon . | . . . Slashing Weapon . | . . . Piercing Weapon . | . . . Special Melee Weapon . | . . . Unidentified Prototypes . | . . . Parts Lost 5 | . . 5 Power 1 | . . 1 Propulsion 2 | . . 2 Utility . | . . . Weapon 2 | . . 2 Highest Loss Streak 5 | . . 5 To Critical Strikes . | . . . Average Slot Usage (%) 97 | . 95 99 Engine 14 | . 14 14 Leg 24 | . 20 27 Wheel 3 | . 7 . Device 11 | . 9 14 Storage 14 | . 14 14 Energy Gun 14 | . 14 14 Ballistic Gun 6 | . 14 . Launcher 7 | . . 14 Naked Turns 1 | . . 1 Heaviest Build 22 | 12 20 22 Greatest Support 20 | 20 20 20 Greatest Overweight (x) 1 | . . 1 Average Overweight (x) . | . . . Largest Inventory Capacity 10 | 8 10 10 Average Capacity 9 | 6 8 9 Most Carried 7 | 5 7 7 Average Carried 5 | 2 4 6 Final Capacity 10 | 8 10 5 Final Carried 6 | 2 6 5 Class Distribution -------------------- 64% | Scavenger-Mutant 35% | Mutant Dominant Class ---------------- Mutant | -10/Materials Scavenger-Mutant | -10/Mines Resources | -11 -10 -10 ----------- Run | Scr Mat Min Matter Collected 418 | 256 154 8 Remotely . | . . . Salvage Created 430 | . 357 73 Parts 16 | . 14 2 Haulers Intercepted 2 | . 2 . Recyclers Shooed 1 | . . 1 Parts Field Recycled . | . . . Retrieved Matter . | . . . Parts Self-Destructed . | . . . Prevented . | . . . Kills | -11 -10 -10 ------- Run | Scr Mat Min Combat Hostiles Destroyed 7 | . 5 2 Guns 5 | . 5 . AOE 2 | . . 2 Classes Destroyed 5 | . 3 2 Hauler 2 | . 2 . Recycler 1 | . . 1 Operator 2 | . 2 . Swarmer 2 | . . 2 Grunt 5 | . 5 . Best Kill Streak 3 | . 3 2 Combat Bots Only 2 | . 2 2 Max Kills in Single Turn 2 | . 1 2 Gunslinging . | . . . Exploded 2 | . . 2 Melee . | . . . Uniques/NPCs Destroyed . | . . . Combat | -11 -10 -10 -------- Run | Scr Mat Min Damage Taken 852 | . 204 648 Core 251 | . 68 183 Absorbed by Shields . | . . . Core Remaining (%) 100 | 100 . . Volleys Fired 36 | . 30 6 Largest 2 | . 2 2 Hottest 83 | . 70 83 Shots Fired 71 | . 60 11 Gun 66 | . 60 6 Cannon . | . . . Launcher 5 | . . 5 Special . | . . . Kinetic 30 | . 30 . Thermal 36 | . 30 6 Explosive 5 | . . 5 Electromagnetic . | . . . Robot Hit Streak 18 | . 18 5 Robot Miss Streak 4 | . 2 4 Penetration Max . | . . . Secondary Targets 1 | . 1 . Max Gunslinging Chain 1 | . 1 . Shots Hit Robots 49 | . 43 6 Core Hits 22 | . 17 5 Critical Kills . | . . . Critical Parts Destroyed . | . . . Critical Strikes 4 | . 4 . Burn 4 | . 4 . Melee Attacks . | . . . Impact . | . . . Slashing . | . . . Piercing . | . . . Sneak Attacks . | . . . Combat Hostiles . | . . . Follow-up Attacks . | . . . Damage Inflicted 925 | . 540 385 Guns 565 | . 540 25 Cannons . | . . . Explosions 360 | . . 360 Melee . | . . . Ramming . | . . . Kinetic 244 | . 244 . Thermal 321 | . 296 25 Explosive 360 | . . 360 Electromagnetic . | . . . Impact . | . . . Slashing . | . . . Piercing . | . . . Highest Corruption . | . . . Average Corruption . | . . . Corruption Purged . | . . . Corruption Blocked . | . . . Overload Shots . | . . . Overflow Damage 11 | . . 11 Projectiles . | . . . Explosions 11 | . . 11 Melee . | . . . Knockbacks . | . . . Impact . | . . . Kinetic . | . . . Secondary . | . . . Self-Inflicted Damage 45 | . . 45 Shots 2 | . . 2 Rammed . | . . . Targets Rammed . | . . . Kicked . | . . . Crushed . | . . . Highest Temperature 66 | . 66 3 Average Temperature 23 | . 24 3 Received Heat Transfer 114 | . 108 6 Siege Activations . | . . . Robots Corrupted . | . . . Combat Hostiles . | . . . Parts Fried . | . . . Impact Corruptions . | . . . Robots Melted . | . . . Combat Hostiles . | . . . Parts Melted 2 | . 2 . Heat Transferred 1258 | . 1184 74 Parts Sabotaged . | . . . Parts Stolen . | . . . Parts Stripped . | . . . Power Chain Reactions . | . . . Missiles Intercepted . | . . . Alert | -11 -10 -10 ------- Run | Scr Mat Min Peak Influence 211 | . 174 211 Initial 67 | . . 67 Average 83 | . 91 84 Maximum Alert Level 1 | . . 1 Low Security (%) 95 | 100 100 91 Level 1 4 | . . 8 Level 2 . | . . . Level 3 . | . . . Level 4 . | . . . Level 5 . | . . . High Security . | . . . Max Security . | . . . Squads Dispatched 3 | . 3 . Investigation 1 | . 1 . Extermination . | . . . Reinforcement 2 | . 2 . Assault . | . . . Garrison . | . . . Intercept . | . . . Searches Triggered . | . . . Construction Impeded . | . . . Haulers Reinforced . | . . . Active Scanning Responses . | . . . Cargo Convoy Interrupts . | . . . Stealth | -11 -10 -10 --------- Run | Scr Mat Min Distress Signals . | . . . Communications Jammed . | . . . Distress Signals . | . . . Times Spotted 16 | . 11 5 Peak Tracking Total 3 | . 3 3 Tactical Retreats . | . . . Traps | -11 -10 -10 ------- Run | Scr Mat Min Traps Triggered . | . . . Indirectly . | . . . Trap Hack Attempts . | . . . Triggered . | . . . Disarmed . | . . . Reprogrammed . | . . . Reused . | . . . Traps Extracted . | . . . Installed . | . . . Triggered . | . . . Machines | -11 -10 -10 ---------- Run | Scr Mat Min Machines Disabled 2 | . . 2 Max in Single Turn . | . . . Machines Sabotaged . | . . . Garrisons Compromised . | . . . Overloaded Fab Kills . | . . . Hacking | -11 -10 -10 --------- Run | Scr Mat Min Machines Accessed 1 | . 1 . Terminals 1 | . 1 . Fabricators . | . . . Repair Stations . | . . . Recycling Units . | . . . Scanalyzers . | . . . Garrison Access . | . . . Total Hacks 3 | . 3 . Successful 1 | . 1 . Failed 2 | . 2 . Catastrophic . | . . . Database Lockouts . | . . . Manual 1 | . 1 . Terminals 3 | . 3 . Fabricators . | . . . Repair Stations . | . . . Recycling Units . | . . . Scanalyzers . | . . . Garrison Access . | . . . Terminal Hacks . | . . . Fabricator Hacks . | . . . Repair Station Hacks . | . . . Recycling Unit Hacks . | . . . Scanalyzer . | . . . Garrison Access Hacks . | . . . Unauthorized Hacks 1 | . 1 . Terminals 1 | . 1 . Assimilate 1 | . 1 . Fabricators . | . . . Repair Stations . | . . . Recycling Units . | . . . Scanalyzers . | . . . Garrison Access . | . . . Data Cores Recovered . | . . . Used . | . . . Hacking Detections 1 | . 1 . Full Trace Events 1 | . 1 . Feedback Events . | . . . Feedback Blocked . | . . . Robot Schematics Acquired . | . . . Robots Built . | . . . Authchips . | . . . Time . | . . . Total Robot Build Rating . | . . . Part Schematics Acquired . | . . . Parts Built . | . . . Authchips . | . . . Time . | . . . Total Part Build Rating . | . . . Parts Repaired . | . . . Time . | . . . Parts Recycled . | . . . Recycled Matter . | . . . Retrieved Matter . | . . . Retrieved Components . | . . . Parts Scanalyzed . | . . . Part Schematics Acquired . | . . . Parts Damaged . | . . . Bothacking | -11 -10 -10 ------------ Run | Scr Mat Min Used RIF Installer . | . . . Robots Hacked . | . . . Non-combat . | . . . Combat . | . . . Robot Hacks Applied . | . . . Relay Couplers Released . | . . . Fabnet Peak Effective % . | . . . Robots Rewired . | . . . Allies Hacked . | . . . Hacks Repelled . | . . . Allies | -11 -10 -10 -------- Run | Scr Mat Min Total Allies 3 | . . 3 Largest Group 3 | . . 3 Highest-Rated Group 40 | . . 40 Highest-Rated Ally 16 | . . 16 Total Orders . | . . . Ally Attacks 8 | . . 8 Total Damage 63 | . . 63 Kills 1 | . . 1 Allies Corrupted . | . . . Allies Melted . | . . . Intel | -11 -10 -10 ------- Run | Scr Mat Min Robot Analysis Total . | . . . Derelict Logs Recovered . | . . . Drone Launches . | . . . Drone Recoveries . | . . . Exploration | -11 -10 -10 ------------- Run | Scr Mat Min Turns Passed 787 | 42 357 388 Spaces Moved 460 | 43 223 194 Core 21 | 19 . 2 Treads . | . . . Legs 321 | . 129 192 Wheels 118 | 24 94 . Hover . | . . . Flight . | . . . Fastest Speed 50 | 50 80 50 Average Speed 135 | 66 103 187 Slowest Speed 190 | 80 120 190 Overloaded Moves . | . . . Propulsion Burnouts . | . . . Robots Hopped . | . . . Cave-ins Triggered . | . . . Exploration Rate (%) 28 | 4 37 44 Regions Visited 2 Branch Regions 1 Pre-discovered Areas . | . . . Known Exits Taken . | . . . Unknown Exits Taken 2 | 1 1 . Scrap Searched . | . . . Spaces Dug . | . . . Terrain Destroyed 18 | . . 18 Melee . | . . . Projectile . | . . . AOE 18 | . . 18 Terrain Rammed . | . . . Walls Destroyed . | . . . Machines Disabled . | . . . Actions | -11 -10 -10 --------- Run | Scr Mat Min Total 554 | 56 290 208 Wait 17 | . 17 . Move 458 | 42 222 194 Hop . | . . . Pick Up 19 | 8 10 1 Fast Attach . | . . . Attach 9 | 6 1 2 Detach 1 | . . 1 Swap 6 | . 5 1 Drop 8 | . 5 3 Fire 36 | . 30 6 Melee . | . . . Ram . | . . . Kick . | . . . Crush . | . . . Escape Stasis . | . . . Rewire . | . . . Trap . | . . . Miscellaneous . | . . . Route ------- -11/Scrapyard -10/Materials (discovered 2 exits: [*Mat] / [*Min]) -10/Mines (discovered 2 exits: [*Mat x2]) History --------- Turn | Location | Event 13 | -11/Scrapyard | Discovered new exit (range 15) 43 | -11/Scrapyard | Entered Materials 179 | -10/Materials | Discovered new exit (range 15) 182 | -10/Materials | Discovered new exit (range 8) 400 | -10/Materials | Entered Mines 434 | -10/Mines | Discovered new exit (range 7) 459 | -10/Mines | Assisted by bots powering up and referring to "LRC-V3" 475 | -10/Mines | Received a Rocket Launcher from a helpful Derelict 582 | -10/Mines | Build established: Scavenger-Mutant 640 | -10/Mines | Discovered new exit (range 15) 752 | -10/Mines | Assembled infested the area 783 | -10/Mines | Core integrity fell below 50% 788 | -10/Mines | Destroyed by D-53 Grenadier with Mini Grenade Launcher Last Messages --------------- 00769_ U-05 Engineer destroyed. 00770_ Laser Drill disabled. 00772_ T-07 Excavator destroyed. 00774_ The unstable cave ceiling collapses. 00776_ Rocket Launcher destroyed. 00777_ The unstable cave ceiling collapses. 00778_ Aluminum Leg destroyed. 00780_ The unstable cave ceiling collapses. 00780_ K-01 Serf collects debris. 00780_ Aluminum Leg destroyed. 00782_ Ion Engine destroyed. 00783_ The unstable cave ceiling collapses. 00783_ Destroyed Tractor Beam. 00783_ R-06 Scavenger destroyed. 00784_ The unstable cave ceiling collapses. 00784_ Grenade Launcher destroyed. 00785_ The unstable cave ceiling collapses. 00786_ Dropped Med. Storage Unit. 00786_ Dropped Med. Laser. 00787_ Dropped Heat Sink. Map ----- +----------------------------------------------------+ | ?????????????????????????????????????????????????? | | ?????????????????????????????????????????????????? | | ?????????????????????????????????????????????????? | | ?????????????????????????????????????????????????? | | ?????????????????????????????????????????????????? | | ?????????????????????????????????????????????????? | | ?????????????????????????????????????????????????? | | ?????????????????????????????????????????????????? | | ?????????????????????????????????????????????????? | | ?????????????????????????????????????????????????? | | ?????????????????????????????????????????????????? | | ?????????????????????#####???????????????????????? | | ????????????????????## #??????????????????????? | | ????????????????????# ??????????????????????? | | ????????????????????? ??????????????????????? | | ????????????????????? ??????????????????????? | | ?????????????????????? ??????????????????????? | | ??????????????????????? ??????????????????????? | | ??????????????????????? ??????????????????????? | | ???????????????????????# ############???????????? | | ??????????????????????## ## #???????????? | | ?????????????????????## " """ #???????????? | | ?????????????????????# " """ #???????????? | | ?????????????????????# " """ #???????????? | | ?????????????????????# #???????????? | | ????????????????????## @ #???????????? | | ????????????????????# % #???????????? | | ????????????????????# ! #???????????? | | ??????????????# * d #???????????? | | ???????????????######## #???????????? | | ??????????????????????## #???????????? | | ??????????????????####### d% ##??????????? | | ??????????????????# #######????? | | ??????????????????# t ???? | | ??????????????????# ###### r ??? | | ??????????????????????????# k ###### ???? | | ??????????????????????????## #??????????? | | ???????????????????????????## ##??????????? | | ????????????????????????????#% ####???????????? | | ????????????????????????????# ##??????????????? | | ????????????????????????????# ###?????##########? | | ????????????????????????????# #??????## ## ## | | ????????????????????????????# #??????# # | | ????????????????????????????# #??????# # | | ??????????????????????####### ######## | | ??????????????????????# | | ???????????????????#### ####### #### #### | | ???????????????????# #?????# #??## #??##### | | ???????????????????# #?????# #???### #??????? | | ???????????????????# #?????# #?????# #??????? | +----------------------------------------------------+ Best States ------------- Heat Dissipation 35 Energy Generation 10 Energy Capacity 250 Matter Stores 300 Matter Capacity 300 Sight Range 16 Terrain Scan Density 10 Evasion (%) 55 Item Schematics ----------------- None Robot Schematics ------------------ None Fabricated ------------ Nothing Alien Tech Used ----------------- None Achievements -------------- None Challenges ------------ None Game ------ Seed CloakHelicalBooster Manual? 0 Play Time 00:09:21 Cumulative 61.5 hours Start 2022.04.09 @ 18:24:52 End 2022.04.09 @ 18:32:46 Sessions 1 Manual Loads 0 Difficulty Rogue Special Mode None Game No. 107 Rogue 107 Adventurer 0 Explorer 0 Win Type - Total 1 Types 1/0/0/0/0/0/0/0/0 Lore% 38 Gallery% 36 Achievement% 36 Wizard Run 0 Options --------- ASCII 0 Keyboard 0 Movement Mouse Keybinds 0 Fullscreen 1 Font 18/SmallcapsGlow Map View 76x50 Tactical HUD 1 Map Filters NONE Filters NONE Steam 1 RUN: d8545aa3-e61c-4b9d-9fe6-8600555ecf0e